[Event "*** Titled Tuesday Blitz"]
[Site "Chess.com"]
[Date "2020.04.14"]
[Round "7"]
[White "Trickov"]
[Black "GMMatamoros"]
[Result "0-1"]
[WhiteElo "2275"]
[BlackElo "2507"]
[TimeControl "180+1"]
[EndTime "11:12:21 PDT"]
[Termination "GMMatamoros won by resignation"]

1. d4 {[%clk 0:02:57.6]} 1... Nf6 {[%clk 0:02:58.1]} 2. Nf3 {[%clk 0:02:56.1]}
2... c5 {[%clk 0:02:57.9]} 3. c4 {[%clk 0:02:55]} 3... cxd4 {[%clk 0:02:57]} 4.
Nxd4 {[%clk 0:02:54.2]} 4... e5 {[%clk 0:02:57.5]} 5. Nb5 {[%clk 0:02:53.6]}
5... d5 {[%clk 0:02:57.1]} 6. cxd5 {[%clk 0:02:53.9]} 6... Bc5 {[%clk
0:02:57.6]} 7. N5c3 {[%clk 0:02:53.9]} 7... O-O {[%clk 0:02:57.1]} 8. e3 {[%clk
0:02:53.7]} 8... e4 {[%clk 0:02:57.4]} 9. Be2 {[%clk 0:02:53.9]} 9... Qe7 {[%clk
0:02:57.4]} 10. a3 {[%clk 0:02:54.1]} 10... a5 {[%clk 0:02:56.9]} 11. Nd2 {[%clk
0:02:52.6]} 11... Rd8 {[%clk 0:02:57.3]} 12. Qc2 {[%clk 0:02:50]} 12... Bf5
{[%clk 0:02:57.4]} 13. Nb3 {[%clk 0:02:46.4]} 13... Bb6 {[%clk 0:02:44]} 14. Bd2
{[%clk 0:02:36.6]} 14... Nbd7 {[%clk 0:02:30.8]} 15. Na4 {[%clk 0:02:30.1]}
15... Rdc8 {[%clk 0:02:01.3]} 16. Bc3 {[%clk 0:02:23.2]} 16... Nxd5 {[%clk
0:01:54.8]} 17. Nxb6 {[%clk 0:02:22.5]} 17... N7xb6 {[%clk 0:01:53.8]} 18. Nd4
{[%clk 0:02:21.9]} 18... Bg6 {[%clk 0:01:52.1]} 19. O-O {[%clk 0:02:21.6]} 19...
Nxc3 {[%clk 0:01:19.2]} 20. bxc3 {[%clk 0:02:20]} 20... Nc4 {[%clk 0:01:19.3]}
21. a4 {[%clk 0:02:16.3]} 21... Ne5 {[%clk 0:01:17]} 22. Rfb1 {[%clk 0:02:07.7]}
22... Nf3+ {[%clk 0:01:08.9]} 23. gxf3 {[%clk 0:01:51.2]} 23... exf3 {[%clk
0:01:06.7]} 24. Bd3 {[%clk 0:01:51.3]} 24... Qg5+ {[%clk 0:01:06.2]} 25. Kf1
{[%clk 0:01:50.5]} 25... Qg2+ {[%clk 0:01:06.2]} 26. Ke1 {[%clk 0:01:50.7]}
26... Qg1+ {[%clk 0:01:02.7]} 27. Kd2 {[%clk 0:01:50.7]} 27... Qxf2+ {[%clk
0:00:56.8]} 28. Kc1 {[%clk 0:01:50.6]} 28... Qxe3+ {[%clk 0:00:55.4]} 29. Kb2
{[%clk 0:01:49]} 29... Bxd3 {[%clk 0:00:51.5]} 30. Re1 {[%clk 0:01:48.7]} 30...
Qxe1 {[%clk 0:00:41]} 31. Rxe1 {[%clk 0:01:46.4]} 31... Bxc2 {[%clk 0:00:40.6]}
32. Kxc2 {[%clk 0:01:46.4]} 32... Rc4 {[%clk 0:00:34.8]} 33. Kb3 {[%clk
0:01:45.3]} 33... Rac8 {[%clk 0:00:34.2]} 34. Re3 {[%clk 0:01:44.9]} 34... Rxc3+
{[%clk 0:00:27.5]} 35. Rxc3 {[%clk 0:01:42.6]} 35... Rxc3+ {[%clk 0:00:28.4]}
36. Kxc3 {[%clk 0:01:42.2]} 36... f2 {[%clk 0:00:28.9]} 0-1

[Event "*** Titled Tuesday Blitz"]
[Site "Chess.com"]
[Date "2020.04.14"]
[Round "7"]
[White "Haykoooo0o"]
[Black "floplover"]
[Result "1-0"]
[WhiteElo "2584"]
[BlackElo "2281"]
[TimeControl "180+1"]
[EndTime "11:12:23 PDT"]
[Termination "Haykoooo0o won on time"]

1. e4 {[%clk 0:03:00.9]} 1... c6 {[%clk 0:02:41]} 2. d4 {[%clk 0:02:58.9]} 2...
d5 {[%clk 0:02:40.1]} 3. Nc3 {[%clk 0:02:59.8]} 3... dxe4 {[%clk 0:02:39.1]} 4.
Nxe4 {[%clk 0:03:00.7]} 4... Nd7 {[%clk 0:02:39.7]} 5. Nf3 {[%clk 0:03:00.1]}
5... Ngf6 {[%clk 0:02:39.7]} 6. Neg5 {[%clk 0:03:00.6]} 6... e6 {[%clk
0:02:37.8]} 7. Bc4 {[%clk 0:02:59.9]} 7... Nb6 {[%clk 0:02:35.9]} 8. Bb3 {[%clk
0:02:59.5]} 8... a5 {[%clk 0:02:35]} 9. c3 {[%clk 0:02:57.6]} 9... a4 {[%clk
0:02:32.3]} 10. Bc2 {[%clk 0:02:57.6]} 10... c5 {[%clk 0:02:29.3]} 11. O-O
{[%clk 0:02:57.5]} 11... h6 {[%clk 0:02:25.6]} 12. Nh3 {[%clk 0:02:51.9]} 12...
Nfd5 {[%clk 0:02:13.7]} 13. Re1 {[%clk 0:02:51.2]} 13... Bd6 {[%clk 0:02:10.6]}
14. dxc5 {[%clk 0:02:48.4]} 14... Bxc5 {[%clk 0:02:10.4]} 15. Nf4 {[%clk
0:02:48.2]} 15... Nxf4 {[%clk 0:01:50.3]} 16. Bxf4 {[%clk 0:02:49.1]} 16... Qxd1
{[%clk 0:01:41.6]} 17. Rexd1 {[%clk 0:02:47.7]} 17... Ke7 {[%clk 0:01:36.5]} 18.
Ne5 {[%clk 0:02:45.8]} 18... Nd5 {[%clk 0:01:30.4]} 19. Bg3 {[%clk 0:02:46.3]}
19... h5 {[%clk 0:01:20.4]} 20. h3 {[%clk 0:02:45.4]} 20... h4 {[%clk
0:01:18.9]} 21. Bh2 {[%clk 0:02:45.9]} 21... a3 {[%clk 0:01:10.1]} 22. b4 {[%clk
0:02:42.6]} 22... Ba7 {[%clk 0:00:58]} 23. Rd3 {[%clk 0:02:42.7]} 23... b5
{[%clk 0:00:54.9]} 24. Nc6+ {[%clk 0:02:38.3]} 24... Kf6 {[%clk 0:00:50.4]} 25.
Rf3+ {[%clk 0:02:37.7]} 25... Kg5 {[%clk 0:00:44.2]} 26. Rd1 {[%clk 0:02:24.6]}
26... f5 {[%clk 0:00:32.8]} 27. Bb3 {[%clk 0:02:10.1]} 27... Bb7 {[%clk
0:00:16.3]} 28. Bxd5 {[%clk 0:02:08.6]} 28... exd5 {[%clk 0:00:16.3]} 29. Ne7
{[%clk 0:02:09.5]} 29... Rhf8 {[%clk 0:00:13.8]} 30. Nxd5 {[%clk 0:02:03.6]}
30... Rad8 {[%clk 0:00:13.3]} 31. Rfd3 {[%clk 0:02:04.1]} 31... Rf7 {[%clk
0:00:09.3]} 32. Bf4+ {[%clk 0:02:04.3]} 32... Kh5 {[%clk 0:00:08.3]} 33. Nf6+
{[%clk 0:02:03.1]} 33... Rxf6 {[%clk 0:00:08.7]} 34. Rxd8 {[%clk 0:02:02.9]}
34... Rg6 {[%clk 0:00:07.9]} 35. Rh8+ {[%clk 0:02:01.6]} 1-0

[Event "*** Titled Tuesday Blitz"]
[Site "Chess.com"]
[Date "2020.04.14"]
[Round "7"]
[White "StockholmMissile"]
[Black "DinaBelenkaya"]
[Result "1-0"]
[WhiteElo "2413"]
[BlackElo "2184"]
[TimeControl "180+1"]
[EndTime "11:12:24 PDT"]
[Termination "StockholmMissile won by resignation"]

1. d4 {[%clk 0:03:00.9]} 1... Nf6 {[%clk 0:02:57.3]} 2. c4 {[%clk 0:02:59.3]}
2... c5 {[%clk 0:02:51.9]} 3. d5 {[%clk 0:02:58.9]} 3... e5 {[%clk 0:02:42.2]}
4. Nc3 {[%clk 0:02:57.6]} 4... d6 {[%clk 0:02:42.2]} 5. e4 {[%clk 0:02:57.5]}
5... Be7 {[%clk 0:02:41.1]} 6. g3 {[%clk 0:02:56.8]} 6... a6 {[%clk 0:02:21]} 7.
Bg2 {[%clk 0:02:51.4]} 7... b5 {[%clk 0:02:15.3]} 8. cxb5 {[%clk 0:02:51.6]}
8... axb5 {[%clk 0:02:15.3]} 9. Nxb5 {[%clk 0:02:51.6]} 9... Ba6 {[%clk
0:02:15.2]} 10. Nc3 {[%clk 0:02:51.2]} 10... Nbd7 {[%clk 0:02:13.2]} 11. Nge2
{[%clk 0:02:50.5]} 11... h5 {[%clk 0:02:13]} 12. O-O {[%clk 0:02:47.6]} 12... h4
{[%clk 0:02:12.8]} 13. a4 {[%clk 0:02:30.4]} 13... Rb8 {[%clk 0:01:51.1]} 14.
Ra3 {[%clk 0:02:28.1]} 14... c4 {[%clk 0:01:41.6]} 15. Nb5 {[%clk 0:02:22.7]}
15... Nc5 {[%clk 0:01:39.2]} 16. Nec3 {[%clk 0:02:21.5]} 16... Qd7 {[%clk
0:01:30.7]} 17. Qe2 {[%clk 0:02:13.3]} 17... Nd3 {[%clk 0:01:13.4]} 18. Be3
{[%clk 0:02:10]} 18... Ng4 {[%clk 0:01:07.5]} 19. Bh3 {[%clk 0:01:56.9]} 19...
f5 {[%clk 0:00:21.5]} 20. exf5 {[%clk 0:01:55.2]} 20... Nxe3 {[%clk 0:00:21.6]}
21. fxe3 {[%clk 0:01:51.7]} 21... hxg3 {[%clk 0:00:22.5]} 22. Qg2 {[%clk
0:01:42.5]} 22... gxh2+ {[%clk 0:00:21.6]} 23. Kh1 {[%clk 0:01:42.6]} 23... Bf6
{[%clk 0:00:22]} 24. Ne4 {[%clk 0:01:35.8]} 24... Bxb5 {[%clk 0:00:21]} 25. axb5
{[%clk 0:01:35.5]} 25... Qf7 {[%clk 0:00:16]} 26. Nxd6+ {[%clk 0:01:33.2]} 26...
Ke7 {[%clk 0:00:15.8]} 27. Nxf7 {[%clk 0:01:34.1]} 27... Kxf7 {[%clk 0:00:16.2]}
28. Ra7+ {[%clk 0:01:33.3]} 28... Kf8 {[%clk 0:00:16]} 29. Qg6 {[%clk
0:01:32.7]} 1-0

[Event "*** Titled Tuesday Blitz"]
[Site "Chess.com"]
[Date "2020.04.14"]
[Round "7"]
[White "kirillshevchenko"]
[Black "JozefKneht"]
[Result "1/2-1/2"]
[WhiteElo "2848"]
[BlackElo "2605"]
[TimeControl "180+1"]
[EndTime "11:12:25 PDT"]
[Termination "Game drawn by repetition"]

1. e4 {[%clk 0:02:58.7]} 1... e5 {[%clk 0:02:59.1]} 2. Nf3 {[%clk 0:02:58.2]}
2... Nc6 {[%clk 0:02:59.1]} 3. Bb5 {[%clk 0:02:58.2]} 3... a6 {[%clk 0:02:59.2]}
4. Ba4 {[%clk 0:02:57.6]} 4... Nf6 {[%clk 0:02:59.2]} 5. O-O {[%clk 0:02:57]}
5... Nxe4 {[%clk 0:02:59.2]} 6. d4 {[%clk 0:02:56.5]} 6... b5 {[%clk 0:02:58.8]}
7. Bb3 {[%clk 0:02:57]} 7... d5 {[%clk 0:02:58.3]} 8. dxe5 {[%clk 0:02:57.4]}
8... Be6 {[%clk 0:02:58.8]} 9. Qe2 {[%clk 0:02:55.7]} 9... Be7 {[%clk
0:02:57.4]} 10. Rd1 {[%clk 0:02:55.3]} 10... O-O {[%clk 0:02:57]} 11. c4 {[%clk
0:02:54.6]} 11... bxc4 {[%clk 0:02:57.5]} 12. Bxc4 {[%clk 0:02:54.9]} 12... Bc5
{[%clk 0:02:57.8]} 13. Be3 {[%clk 0:02:53.3]} 13... Bxe3 {[%clk 0:02:57.7]} 14.
Qxe3 {[%clk 0:02:54.2]} 14... Qb8 {[%clk 0:02:57.7]} 15. Bb3 {[%clk 0:02:48.7]}
15... Na5 {[%clk 0:02:53.1]} 16. Nd4 {[%clk 0:02:47.3]} 16... c5 {[%clk
0:02:45.3]} 17. Nxe6 {[%clk 0:02:46]} 17... fxe6 {[%clk 0:02:43.9]} 18. f3
{[%clk 0:02:42.5]} 18... c4 {[%clk 0:02:44]} 19. fxe4 {[%clk 0:02:34.6]} 19...
cxb3 {[%clk 0:02:42.4]} 20. exd5 {[%clk 0:02:28.3]} 20... bxa2 {[%clk
0:02:38.6]} 21. Rxa2 {[%clk 0:02:12.6]} 21... Nc4 {[%clk 0:02:36.1]} 22. Qd4
{[%clk 0:01:58]} 22... Qb3 {[%clk 0:02:35.3]} 23. Nc3 {[%clk 0:01:56.7]} 23...
Rac8 {[%clk 0:02:34.7]} 24. Rb1 {[%clk 0:01:03.2]} 24... Ne3 {[%clk 0:02:31.8]}
25. Qxe3 {[%clk 0:00:46.4]} 25... Rxc3 {[%clk 0:02:25.8]} 26. Qxc3 {[%clk
0:00:46.5]} 26... Qxa2 {[%clk 0:02:25.9]} 27. Rd1 {[%clk 0:00:45.8]} 27... exd5
{[%clk 0:02:23.6]} 28. Qd4 {[%clk 0:00:38.7]} 28... Qc4 {[%clk 0:02:23]} 29.
Qxd5+ {[%clk 0:00:38.1]} 29... Qxd5 {[%clk 0:02:22]} 30. Rxd5 {[%clk 0:00:39]}
30... Re8 {[%clk 0:02:17.4]} 31. Kf2 {[%clk 0:00:28.6]} 31... Rb8 {[%clk
0:02:16.5]} 32. e6 {[%clk 0:00:15.4]} 32... Rxb2+ {[%clk 0:02:13.8]} 33. Kf3
{[%clk 0:00:15.6]} 33... Kf8 {[%clk 0:02:13.9]} 34. Rd7 {[%clk 0:00:08.7]} 34...
Rb6 {[%clk 0:02:06.5]} 35. Rf7+ {[%clk 0:00:08.2]} 35... Kg8 {[%clk 0:02:05]}
36. Re7 {[%clk 0:00:08.5]} 36... Kf8 {[%clk 0:02:03.7]} 37. Rf7+ {[%clk
0:00:08.6]} 37... Kg8 {[%clk 0:02:03.8]} 38. Re7 {[%clk 0:00:09]} 38... Kf8
{[%clk 0:02:03.3]} 39. Rf7+ {[%clk 0:00:09.1]} 1/2-1/2

[Event "*** Titled Tuesday Blitz"]
[Site "Chess.com"]
[Date "2020.04.14"]
[Round "7"]
[White "adiosabu"]
[Black "ChessQueen"]
[Result "1-0"]
[WhiteElo "2570"]
[BlackElo "2796"]
[TimeControl "180+1"]
[EndTime "11:12:26 PDT"]
[Termination "adiosabu won by resignation"]

1. e4 {[%clk 0:03:00.9]} 1... e5 {[%clk 0:02:59.5]} 2. Nf3 {[%clk 0:03:00.3]}
2... Nf6 {[%clk 0:02:59.8]} 3. Nxe5 {[%clk 0:02:55.6]} 3... d6 {[%clk
0:03:00.2]} 4. Nf3 {[%clk 0:02:55.7]} 4... Nxe4 {[%clk 0:03:00.6]} 5. d4 {[%clk
0:02:56]} 5... d5 {[%clk 0:03:00.6]} 6. Bd3 {[%clk 0:02:56.5]} 6... Bd6 {[%clk
0:03:00.7]} 7. Nc3 {[%clk 0:02:55.7]} 7... Nxc3 {[%clk 0:02:58.4]} 8. bxc3
{[%clk 0:02:55.1]} 8... O-O {[%clk 0:02:58.5]} 9. O-O {[%clk 0:02:51]} 9... Bg4
{[%clk 0:02:58.3]} 10. h3 {[%clk 0:02:50]} 10... Bh5 {[%clk 0:02:57.8]} 11. Rb1
{[%clk 0:02:50]} 11... b6 {[%clk 0:02:56.5]} 12. c4 {[%clk 0:02:48.6]} 12...
dxc4 {[%clk 0:02:49.1]} 13. Bxc4 {[%clk 0:02:42.3]} 13... Nd7 {[%clk 0:02:48.2]}
14. Bd5 {[%clk 0:02:33.9]} 14... Rb8 {[%clk 0:02:42.4]} 15. Bc6 {[%clk 0:02:34]}
15... Kh8 {[%clk 0:02:23.9]} 16. Rb5 {[%clk 0:02:28.1]} 16... Bg6 {[%clk
0:02:21.4]} 17. c4 {[%clk 0:02:11.2]} 17... a6 {[%clk 0:02:02.3]} 18. Rb3 {[%clk
0:01:54.5]} 18... Bh5 {[%clk 0:02:02]} 19. Re1 {[%clk 0:01:37.4]} 19... f5
{[%clk 0:01:57]} 20. c5 {[%clk 0:01:07.7]} 20... bxc5 {[%clk 0:01:51.3]} 21.
Bxd7 {[%clk 0:01:01.7]} 21... Rxb3 {[%clk 0:01:43.4]} 22. axb3 {[%clk
0:01:00.6]} 22... Qxd7 {[%clk 0:01:42.3]} 23. dxc5 {[%clk 0:00:59.6]} 23... Bxf3
{[%clk 0:01:38]} 24. gxf3 {[%clk 0:01:00.5]} 24... Rf6 {[%clk 0:01:34.1]} 25.
cxd6 {[%clk 0:00:56.7]} 25... Rxd6 {[%clk 0:01:31.8]} 26. Qe2 {[%clk 0:00:51.6]}
26... h6 {[%clk 0:01:28.2]} 27. Qe8+ {[%clk 0:00:50.1]} 27... Kh7 {[%clk
0:01:28.3]} 28. Qxd7 {[%clk 0:00:48.4]} 28... Rxd7 {[%clk 0:01:29.2]} 29. Bf4
{[%clk 0:00:48.2]} 29... Rd3 {[%clk 0:01:29.4]} 30. Re3 {[%clk 0:00:48]} 30...
Rd1+ {[%clk 0:01:29.1]} 31. Kg2 {[%clk 0:00:47.7]} 31... c5 {[%clk 0:01:23.3]}
32. Rc3 {[%clk 0:00:43.6]} 32... Rb1 {[%clk 0:01:19.1]} 33. Bd6 {[%clk 0:00:41]}
1-0

[Event "*** Titled Tuesday Blitz"]
[Site "Chess.com"]
[Date "2020.04.14"]
[Round "7"]
[White "biesiadnik"]
[Black "Larax"]
[Result "1-0"]
[WhiteElo "2599"]
[BlackElo "2401"]
[TimeControl "180+1"]
[EndTime "11:12:27 PDT"]
[Termination "biesiadnik won by resignation"]

1. e4 {[%clk 0:03:00.9]} 1... c5 {[%clk 0:03:00.1]} 2. Nf3 {[%clk 0:03:01]} 2...
e6 {[%clk 0:03:00.5]} 3. c3 {[%clk 0:03:00.9]} 3... Nf6 {[%clk 0:02:59.8]} 4. e5
{[%clk 0:03:01.1]} 4... Nd5 {[%clk 0:03:00.3]} 5. d4 {[%clk 0:03:01.8]} 5...
cxd4 {[%clk 0:03:00.9]} 6. cxd4 {[%clk 0:03:02.3]} 6... d6 {[%clk 0:03:01.8]} 7.
Bc4 {[%clk 0:03:02]} 7... Nb6 {[%clk 0:03:02.3]} 8. Bd3 {[%clk 0:02:59.6]} 8...
Nc6 {[%clk 0:03:02]} 9. O-O {[%clk 0:02:57.5]} 9... Bd7 {[%clk 0:03:02.2]} 10.
Qe2 {[%clk 0:02:52.9]} 10... Nb4 {[%clk 0:03:00.1]} 11. Bb5 {[%clk 0:02:38.8]}
11... a6 {[%clk 0:02:53.4]} 12. Bxd7+ {[%clk 0:02:38.8]} 12... Qxd7 {[%clk
0:02:54.3]} 13. Nc3 {[%clk 0:02:39]} 13... Rc8 {[%clk 0:02:47.8]} 14. Rd1 {[%clk
0:02:27.9]} 14... Be7 {[%clk 0:02:39.6]} 15. Bg5 {[%clk 0:02:22.7]} 15... Bxg5
{[%clk 0:02:28.4]} 16. Nxg5 {[%clk 0:02:22.4]} 16... d5 {[%clk 0:02:27.8]} 17.
a3 {[%clk 0:02:13]} 17... Nc6 {[%clk 0:02:24.1]} 18. Rd3 {[%clk 0:02:08.3]}
18... h6 {[%clk 0:02:18.2]} 19. Qh5 {[%clk 0:02:03.8]} 19... O-O {[%clk
0:02:18.4]} 20. h4 {[%clk 0:01:51.5]} 20... Ne7 {[%clk 0:02:03.4]} 21. Nh3
{[%clk 0:01:44.3]} 21... Ng6 {[%clk 0:01:43.9]} 22. Qg4 {[%clk 0:01:38.2]} 22...
Na4 {[%clk 0:01:38.6]} 23. Nxa4 {[%clk 0:01:05.1]} 23... Qxa4 {[%clk 0:01:39.5]}
24. b3 {[%clk 0:00:57.9]} 24... Qb5 {[%clk 0:01:29.6]} 25. Rg3 {[%clk
0:00:57.8]} 25... h5 {[%clk 0:00:54.2]} 26. Qxh5 {[%clk 0:00:57.5]} 1-0

[Event "*** Titled Tuesday Blitz"]
[Site "Chess.com"]
[Date "2020.04.14"]
[Round "7"]
[White "codapbg94"]
[Black "NDePinEsPeRG"]
[Result "0-1"]
[WhiteElo "2052"]
[BlackElo "2892"]
[TimeControl "180+1"]
[EndTime "11:12:35 PDT"]
[Termination "NDePinEsPeRG won by resignation"]

1. e4 {[%clk 0:03:00.2]} 1... c5 {[%clk 0:02:56.5]} 2. Nf3 {[%clk 0:02:39.6]}
2... e6 {[%clk 0:02:56.3]} 3. g3 {[%clk 0:02:38.5]} 3... Nc6 {[%clk 0:02:55.5]}
4. Bg2 {[%clk 0:02:36.5]} 4... Nf6 {[%clk 0:02:54.3]} 5. Qe2 {[%clk 0:02:32.9]}
5... e5 {[%clk 0:02:53.6]} 6. c3 {[%clk 0:02:26]} 6... Be7 {[%clk 0:02:52.7]} 7.
O-O {[%clk 0:02:26.3]} 7... O-O {[%clk 0:02:52.1]} 8. Rd1 {[%clk 0:02:26.6]}
8... d5 {[%clk 0:02:20.8]} 9. exd5 {[%clk 0:02:23.3]} 9... Nxd5 {[%clk
0:02:19.8]} 10. d3 {[%clk 0:02:07]} 10... Bg4 {[%clk 0:02:13.2]} 11. h3 {[%clk
0:02:04.9]} 11... Bh5 {[%clk 0:02:12.2]} 12. Nbd2 {[%clk 0:02:05.2]} 12... Re8
{[%clk 0:02:10.7]} 13. Nc4 {[%clk 0:02:02.4]} 13... f6 {[%clk 0:02:10.1]} 14. a4
{[%clk 0:02:01.9]} 14... Bf8 {[%clk 0:02:08.7]} 15. Qc2 {[%clk 0:02:00.6]} 15...
Bf7 {[%clk 0:02:06]} 16. Ne3 {[%clk 0:01:57.8]} 16... Rc8 {[%clk 0:02:03.8]} 17.
Nxd5 {[%clk 0:01:42.8]} 17... Bxd5 {[%clk 0:02:02.6]} 18. Be3 {[%clk 0:01:42.2]}
18... b6 {[%clk 0:02:01.2]} 19. Qe2 {[%clk 0:01:41.5]} 19... Bb3 {[%clk
0:01:55.3]} 20. Rd2 {[%clk 0:01:39.2]} 20... Qd7 {[%clk 0:01:53.6]} 21. Nh4
{[%clk 0:01:30.4]} 21... Ne7 {[%clk 0:01:47.8]} 22. Qg4 {[%clk 0:01:21.6]} 22...
f5 {[%clk 0:01:42.8]} 23. Qe2 {[%clk 0:00:57.4]} 23... Bxa4 {[%clk 0:01:37]} 24.
Bg5 {[%clk 0:00:55.8]} 24... Bc6 {[%clk 0:01:28.7]} 25. Qxe5 {[%clk 0:00:46.6]}
25... Bxg2 {[%clk 0:01:26.8]} 26. Nxg2 {[%clk 0:00:37.7]} 26... Ng6 {[%clk
0:01:24.7]} 0-1

[Event "*** Titled Tuesday Blitz"]
[Site "Chess.com"]
[Date "2020.04.14"]
[Round "7"]
[White "suyu28"]
[Black "Witik"]
[Result "1-0"]
[WhiteElo "2557"]
[BlackElo "2702"]
[TimeControl "180+1"]
[EndTime "11:12:38 PDT"]
[Termination "suyu28 won by resignation"]

1. d4 {[%clk 0:02:59.5]} 1... g6 {[%clk 0:02:57.2]} 2. c4 {[%clk 0:02:59]} 2...
Bg7 {[%clk 0:02:57.5]} 3. Nc3 {[%clk 0:02:58.5]} 3... d6 {[%clk 0:02:57.9]} 4.
g3 {[%clk 0:02:57.6]} 4... Nf6 {[%clk 0:02:57.4]} 5. Bg2 {[%clk 0:02:57.8]} 5...
O-O {[%clk 0:02:57.4]} 6. Nf3 {[%clk 0:02:58]} 6... Nc6 {[%clk 0:02:57.4]} 7.
O-O {[%clk 0:02:57.9]} 7... a6 {[%clk 0:02:57.4]} 8. Bf4 {[%clk 0:02:53.1]} 8...
Rb8 {[%clk 0:02:40.8]} 9. Rc1 {[%clk 0:02:50.5]} 9... e6 {[%clk 0:02:34.8]} 10.
Qd2 {[%clk 0:02:48.7]} 10... Ne7 {[%clk 0:02:32.9]} 11. e4 {[%clk 0:02:44.9]}
11... Nd7 {[%clk 0:02:31.4]} 12. a4 {[%clk 0:02:40.9]} 12... b6 {[%clk
0:02:25.7]} 13. Rcd1 {[%clk 0:02:32.1]} 13... Bb7 {[%clk 0:02:24.8]} 14. Rfe1
{[%clk 0:02:32.1]} 14... Kh8 {[%clk 0:01:57.3]} 15. h4 {[%clk 0:02:30]} 15...
Nc6 {[%clk 0:01:50.5]} 16. h5 {[%clk 0:02:24.2]} 16... Nxd4 {[%clk 0:01:36.1]}
17. Nxd4 {[%clk 0:02:22.4]} 17... e5 {[%clk 0:01:36.5]} 18. h6 {[%clk
0:02:05.1]} 18... Bf6 {[%clk 0:01:35.1]} 19. Be3 {[%clk 0:02:05.5]} 19... exd4
{[%clk 0:01:34.5]} 20. Bxd4 {[%clk 0:02:06.4]} 20... Bxd4 {[%clk 0:01:30.7]} 21.
Qxd4+ {[%clk 0:02:07.3]} 21... Qf6 {[%clk 0:01:31.2]} 22. Qd2 {[%clk 0:02:07.1]}
22... a5 {[%clk 0:01:25.2]} 23. f4 {[%clk 0:01:54.6]} 23... Nc5 {[%clk
0:01:14.6]} 24. e5 {[%clk 0:01:44.8]} 24... dxe5 {[%clk 0:01:14.2]} 25. Bxb7
{[%clk 0:01:44]} 25... Rxb7 {[%clk 0:01:09.4]} 26. Nd5 {[%clk 0:01:43.6]} 26...
Qd8 {[%clk 0:00:41]} 27. Qc3 {[%clk 0:01:37.9]} 27... c6 {[%clk 0:00:35.7]} 28.
Qxe5+ {[%clk 0:01:31.2]} 28... f6 {[%clk 0:00:35.6]} 29. Nxf6 {[%clk 0:01:31.1]}
29... Nd3 {[%clk 0:00:17.8]} 30. Rxd3 {[%clk 0:01:27.8]} 1-0

[Event "*** Titled Tuesday Blitz"]
[Site "Chess.com"]
[Date "2020.04.14"]
[Round "7"]
[White "Gennady_Kozlov"]
[Black "Zmof"]
[Result "1-0"]
[WhiteElo "2586"]
[BlackElo "2325"]
[TimeControl "180+1"]
[EndTime "11:12:41 PDT"]
[Termination "Gennady_Kozlov won by resignation"]

1. b3 {[%clk 0:02:55.9]} 1... c5 {[%clk 0:02:58.7]} 2. Bb2 {[%clk 0:02:56.8]}
2... b6 {[%clk 0:02:58.7]} 3. e3 {[%clk 0:02:57.3]} 3... Bb7 {[%clk 0:02:58.9]}
4. f4 {[%clk 0:02:57.9]} 4... e6 {[%clk 0:02:58.5]} 5. Nf3 {[%clk 0:02:58.4]}
5... Nf6 {[%clk 0:02:58.3]} 6. Be2 {[%clk 0:02:58.9]} 6... Be7 {[%clk
0:02:57.7]} 7. O-O {[%clk 0:02:59.5]} 7... O-O {[%clk 0:02:58.3]} 8. Qe1 {[%clk
0:03:00]} 8... d6 {[%clk 0:02:55.5]} 9. Qg3 {[%clk 0:03:00.6]} 9... Nbd7 {[%clk
0:02:53.4]} 10. d3 {[%clk 0:02:59.2]} 10... Ne8 {[%clk 0:02:46.4]} 11. Nbd2
{[%clk 0:02:59.2]} 11... Bf6 {[%clk 0:02:46.7]} 12. Bxf6 {[%clk 0:02:59.2]}
12... Qxf6 {[%clk 0:02:43.5]} 13. e4 {[%clk 0:02:58.9]} 13... e5 {[%clk
0:02:36.7]} 14. fxe5 {[%clk 0:02:55.3]} 14... Nxe5 {[%clk 0:02:34]} 15. Nh4
{[%clk 0:02:51.8]} 15... Qe6 {[%clk 0:02:25.2]} 16. Nf5 {[%clk 0:02:51.1]} 16...
Kh8 {[%clk 0:02:13.9]} 17. Rf4 {[%clk 0:02:42.4]} 17... g6 {[%clk 0:02:11.1]}
18. Ne3 {[%clk 0:02:33.6]} 18... Ng7 {[%clk 0:02:09.6]} 19. Raf1 {[%clk
0:02:31.4]} 19... Rae8 {[%clk 0:02:00.6]} 20. Rf6 {[%clk 0:02:26]} 20... Qe7
{[%clk 0:01:59.7]} 21. Ndc4 {[%clk 0:02:22.2]} 21... Nxc4 {[%clk 0:01:51.6]} 22.
Nxc4 {[%clk 0:02:21.2]} 22... d5 {[%clk 0:01:50.5]} 23. Nd6 {[%clk 0:02:20.9]}
23... Nf5 {[%clk 0:01:33.1]} 24. R6xf5 {[%clk 0:01:35.3]} 24... gxf5 {[%clk
0:01:32.5]} 25. Nxe8 {[%clk 0:01:35.5]} 25... Rxe8 {[%clk 0:01:28.7]} 26. Rxf5
{[%clk 0:01:28.9]} 26... dxe4 {[%clk 0:01:27.8]} 27. Qf4 {[%clk 0:01:19.5]}
27... exd3 {[%clk 0:01:17.7]} 28. Rxf7 {[%clk 0:01:19.1]} 28... Qe3+ {[%clk
0:00:56.3]} 29. Qxe3 {[%clk 0:01:17.8]} 29... Rxe3 {[%clk 0:00:56.2]} 30. Bxd3
{[%clk 0:01:17.6]} 30... Bd5 {[%clk 0:00:37.2]} 31. Rxh7+ {[%clk 0:01:17]} 31...
Kg8 {[%clk 0:00:36.4]} 32. Rxa7 {[%clk 0:01:17.9]} 1-0